[Event "FIDE World Rapid-ch Open 2018"]
[White "Nakamura, Hikaru"]
[Black "Duda, Jan-Krzysztof"]
[Site "St. Petersburg"]
[Round "11.10"]
[Annotator "ChessBase"]
[Result "1/2-1/2"]
[Date "2018.12.28"]
[WhiteElo "2746"]
[BlackElo "2738"]
[PlyCount "163"]
[TimeControl "900+10"]

1. Nf3 {[%emt 0:0:0]} Nf6 {[%emt 0:0:0]} 2. b3 {[%emt 0:0:10]} b6 {[%emt 0:0:14]
} 3. Bb2 {[%emt 0:0:10]} Bb7 {[%emt 0:0:10]} 4. g3 {[%emt 0:0:0]} g6 {[%emt 0:0:20]} 5. Bg2 {[%emt 0:0:42]} Bg7 {[%emt 0:0:10]} 6. d4 {[%emt 0:0:10]
} 0-0 {[%emt 0:0:59]} 7. c4 {[%emt 0:0:10]} c5 {[%emt 0:1:7]} 8. dxc5 {[%emt 0:0:22]} bxc5 {[%emt 0:0:10]} 9. 0-0 {[%emt 0:0:10]} d6 {[%emt 0:0:10]
} 10. Nc3 {[%emt 0:0:10]} Nbd7 {[%emt 0:0:10]} 11. Qc2 {[%emt 0:0:10]
} Rb8 {[%emt 0:0:45]} 12. Rad1 {[%emt 0:0:50]} Ne4 {[%emt 0:0:0]} 13. Na4 {[%emt 0:4:5]} Bxb2 {[%emt 0:0:20]} 14. Nxb2 {[%emt 0:0:10]} Qa5 {[%emt 0:0:41]} 15. Rc1 {[%emt 0:0:10]} Nef6 {[%emt 0:1:5]} 16. Nd3 {[%emt 0:0:33]
} Qb6 {[%emt 0:1:14]} 17. Bh3 {[%emt 0:1:34]} a5 {[%emt 0:0:0]} 18. Nd2 {[%emt 0:0:10]} Qc6 {[%emt 0:1:16]} 19. f3 {[%emt 0:0:10]} a4 {[%emt 0:0:10]
} 20. e4 {[%emt 0:0:10]} axb3 {[%emt 0:0:10]} 21. axb3 {[%emt 0:0:10]
} Ra8 {[%emt 0:0:52]} 22. Nb1 {[%emt 0:0:29]} Rfb8 {[%emt 0:0:0]} 23. Nc3 {[%emt 0:0:10]} Qc7 {[%emt 0:0:37]} 24. Ra1 {[%emt 0:0:45]} Bc6 {[%emt 0:0:20]} 25. Rxa8 {[%emt 0:0:26]} Rxa8 {[%emt 0:0:10]} 26. Rb1 {[%emt 0:0:10]
} Nf8 {[%emt 0:0:19]} 27. Nd5 {[%emt 0:0:24]} Nxd5 {[%emt 0:0:0]} 28. exd5 {[%emt 0:0:10]} Bd7 {[%emt 0:0:10]} 29. Bxd7 {[%emt 0:0:10]} Qxd7 {[%emt 0:0:23]} 30. Kg2 {[%emt 0:0:22]} Qf5 {[%emt 0:0:30]} 31. Rb2 {[%emt 0:0:53]
} e6 {[%emt 0:0:56]} 32. Nf4 {[%emt 0:0:47]} Qxc2+ {[%emt 0:0:0]} 33. Rxc2 {[%emt 0:0:10]} Kg7 {[%emt 0:0:10]} 34. Rd2 {[%emt 0:0:34]} Ra6 {[%emt 0:0:20]} 35. dxe6 {[%emt 0:0:26]} Nxe6 {[%emt 0:0:19]} 36. Ne2 {[%emt 0:0:10]
} Ra3 {[%emt 0:0:32]} 37. Rb2 {[%emt 0:0:52]} h5 {[%emt 0:0:0]} 38. f4 {[%emt 0:0:10]} Kf6 {[%emt 0:0:30]} 39. Kf3 {[%emt 0:0:10]} Ra1 {[%emt 0:0:10]} 40. Rd2 {[%emt 0:0:14]} Ke7 {[%emt 0:0:10]} 41. Rd3 {[%emt 0:0:15]
} Rh1 {[%emt 0:0:28]} 42. Kg2 {[%emt 0:0:10]} Rb1 {[%emt 0:0:0]} 43. Kf3 {[%emt 0:0:13]} Rb2 {[%emt 0:0:10]} 44. h3 {[%emt 0:0:10]} Kd7 {[%emt 0:1:3]} 45. Re3 {[%emt 0:0:14]} Nd8 {[%emt 0:0:33]} 46. f5 {[%emt 0:0:0]} Nc6 {[%emt 0:0:10]} 47. fxg6 {[%emt 0:0:10]} fxg6 {[%emt 0:0:10]} 48. Kf4 {[%emt 0:0:10]} Na5 {[%emt 0:0:47]} 49. Kg5 {[%emt 0:0:16]} Nxb3 {[%emt 0:0:10]
} 50. Nf4 {[%emt 0:0:12]} Nd2 {[%emt 0:0:10]} 51. Nxg6 {[%emt 0:0:25]
} Nxc4 {[%emt 0:0:10]} 52. Re7+ {[%emt 0:0:10]} Kc6 {[%emt 0:0:0]} 53. Kxh5 {[%emt 0:0:10]} d5 {[%emt 0:0:11]} 54. Re8 {[%emt 0:0:53]} d4 {[%emt 0:0:10]} 55. Rc8+ {[%emt 0:0:10]} Kd6 {[%emt 0:0:15]} 56. Rd8+ {[%emt 0:0:18]
} Kc7 {[%emt 0:0:10]} 57. Rd5 {[%emt 0:0:10]} Rb5 {[%emt 0:0:0]} 58. Nf4 {[%emt 0:0:10]} Ne3 {[%emt 0:0:10]} 59. Rg5 {[%emt 0:0:50]} Kb6 {[%emt 0:0:10]} 60. Rg6+ {[%emt 0:0:11]} Ka5 {[%emt 0:0:10]} 61. Rd6 {[%emt 0:0:10]
} Nf5 {[%emt 0:0:10]} 62. Rd8 {[%emt 0:0:10]} Nxg3+ {[%emt 0:0:0]} 63. Kg4 {[%emt 0:0:10]} Ne4 {[%emt 0:0:10]} 64. h4 {[%emt 0:0:10]} Rb7 {[%emt 0:0:17]} 65. h5 {[%emt 0:0:27]} Kb4 {[%emt 0:0:10]} 66. h6 {[%emt 0:0:10]
} Kc3 {[%emt 0:0:10]} 67. Kf5 {[%emt 0:0:10]} Ng3+ {[%emt 0:0:0]} 68. Kg4 {[%emt 0:0:10]} Ne4 {[%emt 0:0:10]} 69. Kf5 {[%emt 0:0:27]} Ng3+ {[%emt 0:0:10]} 70. Ke5 {[%emt 0:0:10]} Rh7 {[%emt 0:0:10]} 71. Rd6 {[%emt 0:0:10]
} Rh8 {[%emt 0:0:10]} 72. Ra6 {[%emt 0:0:15]} d3 {[%emt 0:0:0]} 73. Ra3+ {[%emt 0:0:10]} Kc2 {[%emt 0:0:10]} 74. Rxd3 {[%emt 0:0:10]} Ne2 {[%emt 0:0:10]} 75. Rd6 {[%emt 0:0:15]} Nxf4 {[%emt 0:0:10]} 76. Kxf4 {[%emt 0:0:10]
} c4 {[%emt 0:0:10]} 77. Rc6 {[%emt 0:0:10]} c3 {[%emt 0:0:10]
} 78. Kg5 {[%emt 0:0:10]} Kd2 {[%emt 0:0:10]} 79. Kg6 {[%emt 0:0:10]} c2 {[%emt 0:0:10]
} 80. Kg7 {[%emt 0:0:10]} Rxh6 {[%emt 0:0:10]} 81. Rxc2+ {[%emt 0:0:10]
} Kxc2 {[%emt 0:0:10]} 82. Kxh6 {[%emt 0:0:10]} 1/2-1/2

[Event "FIDE World Rapid-ch Open 2018"]
[White "Karjakin, Sergey"]
[Black "Zubov, Alexander"]
[Site "St. Petersburg"]
[Round "11.11"]
[Annotator "ChessBase"]
[Result "1/2-1/2"]
[Date "2018.12.28"]
[WhiteElo "2753"]
[BlackElo "2597"]
[PlyCount "88"]
[TimeControl "900+10"]

1. e4 {[%emt 0:0:30]} Nc6 {[%emt 0:0:0]} 2. d4 {[%emt 0:0:6]} e5 {[%emt 0:0:0]} 3. dxe5 {[%emt 0:0:2]} Nxe5 {[%emt 0:0:0]} 4. Nc3 {[%emt 0:0:2]} Nc6 {[%emt 0:2:40]} 5. Bc4 {[%emt 0:1:54]} Bb4 {[%emt 0:2:6]} 6. Nge2 {[%emt 0:0:11]
} d6 {[%emt 0:0:55]} 7. 0-0 {[%emt 0:0:13]} Nge7 {[%emt 0:0:0]} 8. Bg5 {[%emt 0:0:24]} h6 {[%emt 0:0:23]} 9. Bh4 {[%emt 0:2:11]} Bc5 {[%emt 0:4:12]
} 10. Na4 {[%emt 0:1:18]} Bb6 {[%emt 0:0:18]} 11. Nxb6 {[%emt 0:0:5]
} axb6 {[%emt 0:0:1]} 12. f4 {[%emt 0:0:9]} Be6 {[%emt 0:0:0]} 13. Bb5 {[%emt 0:0:44]} f6 {[%emt 0:0:32]} 14. Nd4 {[%emt 0:1:1]} Qd7 {[%emt 0:0:59]} 15. Nxe6 {[%emt 0:4:44]} Qxe6 {[%emt 0:0:2]} 16. Qh5+ {[%emt 0:0:1]
} g6 {[%emt 0:0:47]} 17. Qe2 {[%emt 0:1:19]} 0-0-0 {[%emt 0:0:0]} 18. Rad1 {[%emt 0:0:1]} g5 {[%emt 0:0:7]} 19. Bg3 {[%emt 0:0:5]} Kb8 {[%emt 0:0:14]} 20. Bc4 {[%emt 0:0:19]} Qc8 {[%emt 0:0:15]} 21. fxg5 {[%emt 0:0:19]
} fxg5 {[%emt 0:0:4]} 22. Rf6 {[%emt 0:0:2]} Rdf8 {[%emt 0:0:0]} 23. Rdf1 {[%emt 0:0:14]} Rxf6 {[%emt 0:0:4]} 24. Rxf6 {[%emt 0:0:0]} h5 {[%emt 0:0:2]} 25. h3 {[%emt 0:0:39]} Ne5 {[%emt 0:0:17]} 26. Bxe5 {[%emt 0:0:16]} dxe5 {[%emt 0:0:1]} 27. Qd2 {[%emt 0:0:22]} g4 {[%emt 0:0:0]} 28. Be6 {[%emt 0:0:44]} Qe8 {[%emt 0:0:3]} 29. hxg4 {[%emt 0:1:3]} hxg4 {[%emt 0:0:4]} 30. Bxg4 {[%emt 0:0:2]} Qa4 {[%emt 0:0:26]} 31. Rh6 {[%emt 0:0:26]
} Rf8 {[%emt 0:0:39]} 32. Bf3 {[%emt 0:0:24]} Nc6 {[%emt 0:0:0]} 33. c3 {[%emt 0:0:16]} Rd8 {[%emt 0:0:17]} 34. Qf2 {[%emt 0:0:18]} Qxa2 {[%emt 0:0:2]} 35. Kh2 {[%emt 0:0:2]} Rf8 {[%emt 0:0:7]} 36. Qd2 {[%emt 0:0:4]
} Rd8 {[%emt 0:0:2]} 37. Qf2 {[%emt 0:0:3]} Rf8 {[%emt 0:0:0]} 38. Rh5 {[%emt 0:0:18]} Qb1 {[%emt 0:0:12]} 39. Qd2 {[%emt 0:0:15]} Rd8 {[%emt 0:0:7]} 40. Qf2 {[%emt 0:0:6]} Qc1 {[%emt 0:0:1]} 41. Bg4 {[%emt 0:0:4]
} Qb1 {[%emt 0:0:28]} 42. Qe2 {[%emt 0:0:20]} Qc1 {[%emt 0:0:0]} 43. Qf2 {[%emt 0:0:3]} Qb1 {[%emt 0:0:2]} 44. Qe2 {[%emt 0:0:23]} Qc1 {[%emt 0:0:3]} 1/2-1/2

[Event "FIDE World Rapid-ch Open 2018"]
[White "Harikrishna, Pentala"]
[Black "Petrosian, Tigran L."]
[Site "St. Petersburg"]
[Round "11.12"]
[Annotator "ChessBase"]
[Result "0-1"]
[Date "2018.12.28"]
[WhiteElo "2725"]
[BlackElo "2598"]
[PlyCount "98"]
[TimeControl "900+10"]

1. e4 {[%emt 0:0:0]} d6 {[%emt 0:0:0]} 2. d4 {[%emt 0:0:0]} Nf6 {[%emt 0:0:0]} 3. Nc3 {[%emt 0:0:0]} c6 {[%emt 0:0:5]} 4. Nf3 {[%emt 0:0:19]} Qa5 {[%emt 0:0:18]} 5. Bd2 {[%emt 0:1:2]} e5 {[%emt 0:2:37]} 6. Nd5 {[%emt 0:0:0]} Qd8 {[%emt 0:0:14]} 7. Nxf6+ {[%emt 0:0:4]} Qxf6 {[%emt 0:0:29]} 8. Bg5 {[%emt 0:2:15]} Qg6 {[%emt 0:0:11]} 9. dxe5 {[%emt 0:0:3]} Qxe4+ {[%emt 0:0:6]
} 10. Be2 {[%emt 0:0:11]} h6 {[%emt 0:0:57]} 11. Bh4 {[%emt 0:0:0]} Bg4 {[%emt 0:3:5]} 12. Bg3 {[%emt 0:0:29]} dxe5 {[%emt 0:0:10]} 13. Nxe5 {[%emt 0:2:16]} Qxg2 {[%emt 0:5:11]} 14. Rf1 {[%emt 0:0:18]} Be6 {[%emt 0:0:3]
} 15. Bf3 {[%emt 0:2:0]} Qh3 {[%emt 0:0:1]} 16. Qe2 {[%emt 0:0:0]} Bb4+ {[%emt 0:0:24]} 17. c3 {[%emt 0:0:10]} Be7 {[%emt 0:0:1]} 18. 0-0-0 {[%emt 0:0:47]} 0-0 {[%emt 0:1:23]} 19. Bg4 {[%emt 0:0:43]} Bxg4 {[%emt 0:0:16]
} 20. Nxg4 {[%emt 0:0:3]} Re8 {[%emt 0:0:33]} 21. Bf4 {[%emt 0:2:29]
} Na6 {[%emt 0:0:32]} 22. Rd3 {[%emt 0:0:2]} Qh4 {[%emt 0:0:0]} 23. Re3 {[%emt 0:0:57]} Nc5 {[%emt 0:0:10]} 24. Rg1 {[%emt 0:0:35]} Ne6 {[%emt 0:0:10]} 25. Bxh6 {[%emt 0:0:54]} Bg5 {[%emt 0:0:3]} 26. Bxg5 {[%emt 0:0:24]
} Qxg5 {[%emt 0:0:1]} 27. Qf3 {[%emt 0:0:33]} Kf8 {[%emt 0:0:0]} 28. Qh3 {[%emt 0:0:30]} Rad8 {[%emt 0:0:32]} 29. Rge1 {[%emt 0:0:22]} Kg8 {[%emt 0:0:7]} 30. Kb1 {[%emt 0:0:9]} Qf5+ 31. Ka1 Qc2 {[%emt 0:0:10]} 32. Qf3 {[%emt 0:0:33]} Rd2 {[%emt 0:0:4]} 33. Rb1 {[%emt 0:0:0]} Red8 {[%emt 0:0:14]
} 34. Nh6+ {[%emt 0:0:21]} gxh6 {[%emt 0:0:15]} 35. Rxe6 {[%emt 0:0:0]
} Rd1 {[%emt 0:0:23]} 36. Re8+ {[%emt 0:0:1]} Kg7 {[%emt 0:0:0]} 37. Qg4+ {[%emt 0:0:17]} Qg6 {[%emt 0:0:6]} 38. Qxd1 {[%emt 0:0:17]} Rxe8 {[%emt 0:0:6]} 39. Qd4+ {[%emt 0:0:1]} Kh7 {[%emt 0:0:8]} 40. Qxa7 {[%emt 0:0:1]
} b5 {[%emt 0:0:10]} 41. a3 {[%emt 0:0:7]} Re2 {[%emt 0:0:22]
} 42. Rd1 {[%emt 0:0:9]} Qf5 {[%emt 0:0:11]} 43. Rf1 {[%emt 0:0:31]} c5 {[%emt 0:0:11]
} 44. Qb7 {[%emt 0:0:19]} b4 {[%emt 0:0:15]} 45. axb4 {[%emt 0:0:0]} cxb4 {[%emt 0:0:7]} 46. Qxb4 {[%emt 0:0:4]} Re6 {[%emt 0:0:8]} 47. b3 {[%emt 0:0:1]} Qc2 {[%emt 0:0:3]} 48. Qc4 {[%emt 0:0:12]} Re7 {[%emt 0:0:23]
} 49. Qd4 {[%emt 0:0:16]} Re2 {[%emt 0:0:3]} 0-1

[Event "FIDE World Rapid-ch Open 2018"]
[White "Kamsky, Gata"]
[Black "Sargissian, Gabriel"]
[Site "St. Petersburg"]
[Round "11.13"]
[Annotator "ChessBase"]
[Result "1/2-1/2"]
[Date "2018.12.28"]
[WhiteElo "2666"]
[BlackElo "2689"]
[PlyCount "71"]
[TimeControl "900+10"]

1. e4 {[%emt 0:0:0]} e5 {[%emt 0:0:0]} 2. Nf3 {[%emt 0:0:0]} Nc6 {[%emt 0:0:0]
} 3. Nc3 {[%emt 0:0:1]} Nf6 {[%emt 0:0:7]} 4. d4 {[%emt 0:0:0]} exd4 {[%emt 0:0:12]} 5. Nxd4 {[%emt 0:0:2]} Bb4 {[%emt 0:0:8]} 6. Nxc6 {[%emt 0:0:3]} bxc6 {[%emt 0:0:2]} 7. Bd3 {[%emt 0:0:2]} 0-0 {[%emt 0:0:33]
} 8. 0-0 {[%emt 0:0:4]} d5 {[%emt 0:0:19]} 9. exd5 {[%emt 0:0:0]} cxd5 {[%emt 0:0:24]} 10. h3 {[%emt 0:0:2]} c6 {[%emt 0:0:22]} 11. Qf3 {[%emt 0:0:3]} Rb8 {[%emt 0:0:18]} 12. Bf4 {[%emt 0:0:40]} Bd6 {[%emt 0:0:6]
} 13. b3 {[%emt 0:0:7]} Qc7 {[%emt 0:0:27]} 14. Bxd6 {[%emt 0:0:0]} Qxd6 {[%emt 0:0:2]} 15. Na4 {[%emt 0:0:53]} Be6 {[%emt 0:2:19]} 16. Rad1 {[%emt 0:1:41]} c5 {[%emt 0:0:6]} 17. c4 {[%emt 0:0:5]} d4 {[%emt 0:0:0]} 18. Rfe1 {[%emt 0:2:20]} Bd7 {[%emt 0:0:13]} 19. Nb2 {[%emt 0:0:3]} Bc6 {[%emt 0:0:29]} 20. Qf5 {[%emt 0:0:41]} Rfe8 {[%emt 0:0:14]} 21. Bc2 {[%emt 0:0:36]
} g6 {[%emt 0:0:19]} 22. Qg5 {[%emt 0:0:2]} Kg7 {[%emt 0:0:0]} 23. f3 {[%emt 0:1:4]} h6 {[%emt 0:1:33]} 24. Qh4 {[%emt 0:0:3]} a5 {[%emt 0:1:41]
} 25. Nd3 {[%emt 0:0:16]} Bd7 {[%emt 0:1:8]} 26. Qf2 {[%emt 0:0:0]} Bf5 {[%emt 0:0:25]} 27. Nb2 {[%emt 0:0:6]} Bxc2 {[%emt 0:0:15]} 28. Qxc2 {[%emt 0:0:3]} Nh5 {[%emt 0:0:18]} 29. Qd2 {[%emt 0:3:27]} Nf4 {[%emt 0:0:20]
} 30. h4 {[%emt 0:0:28]} Ra8 {[%emt 0:2:37]} 31. Kf2 {[%emt 0:0:0]} Rad8 {[%emt 0:2:27]} 32. Rxe8 {[%emt 0:1:27]} Rxe8 {[%emt 0:0:2]} 33. Re1 {[%emt 0:0:1]} Rxe1 {[%emt 0:0:55]} 34. Qxe1 {[%emt 0:0:1]} d3 {[%emt 0:0:15]
} 35. Qc3+ {[%emt 0:1:30]} Kg8 {[%emt 0:0:26]} 36. g3 {[%emt 0:0:0]} 1/2-1/2

[Event "FIDE World Rapid-ch Open 2018"]
[White "Alekseenko, Kirill"]
[Black "Svidler, Peter"]
[Site "St. Petersburg"]
[Round "11.14"]
[Annotator "ChessBase"]
[Result "0-1"]
[Date "2018.12.28"]
[WhiteElo "2638"]
[BlackElo "2737"]
[PlyCount "56"]
[TimeControl "900+10"]

1. d4 {[%emt 0:0:0]} Nf6 {[%emt 0:0:0]} 2. c4 {[%emt 0:0:0]} g6 {[%emt 0:0:0]} 3. Nc3 {[%emt 0:0:0]} d5 {[%emt 0:0:0]} 4. cxd5 {[%emt 0:0:8]} Nxd5 {[%emt 0:0:0]} 5. e4 {[%emt 0:0:6]} Nxc3 {[%emt 0:0:1]} 6. bxc3 {[%emt 0:0:3]
} Bg7 {[%emt 0:0:2]} 7. Qa4+ {[%emt 0:0:14]} Qd7 {[%emt 0:0:0]} 8. Bb5 {[%emt 0:0:6]} c6 {[%emt 0:0:2]} 9. Be2 {[%emt 0:0:6]} 0-0 {[%emt 0:0:5]
} 10. Qa3 {[%emt 0:0:56]} b6 {[%emt 0:0:49]} 11. Nf3 {[%emt 0:0:0]} c5 {[%emt 0:0:52]} 12. d5 {[%emt 0:2:46]} e6 {[%emt 0:1:58]} 13. Be3 {[%emt 0:0:12]} exd5 {[%emt 0:0:19]} 14. Rd1 {[%emt 0:0:16]} Re8 {[%emt 0:0:0]} 15. exd5 {[%emt 0:0:37]} Qd6 {[%emt 0:0:6]} 16. 0-0 {[%emt 0:0:33]} Bf5 {[%emt 0:1:10]} 17. Rfe1 {[%emt 0:0:35]} Nd7 {[%emt 0:0:31]} 18. Nd4 {[%emt 0:1:51]
} Be5 {[%emt 0:2:46]} 19. Nb5 {[%emt 0:1:39]} Bxh2+ {[%emt 0:0:0]} 20. Kh1 {[%emt 0:0:2]} Qe5 {[%emt 0:0:1]} 21. Bf3 {[%emt 0:0:19]} a6 {[%emt 0:1:12]} 22. Bc1 {[%emt 0:1:26]} Qf6 {[%emt 0:0:32]} 23. Kxh2 {[%emt 0:0:50]
} axb5 {[%emt 0:0:2]} 24. Qb2 {[%emt 0:1:9]} Ne5 {[%emt 0:0:0]} 25. Be2 {[%emt 0:0:9]} Bg4 {[%emt 0:0:59]} 26. Qxb5 {[%emt 0:0:30]} Qxf2 {[%emt 0:0:26]} 27. Kh1 {[%emt 0:1:31]} Nf3 {[%emt 0:0:23]} 28. gxf3 {[%emt 0:0:32]
} Rxe2 {[%emt 0:0:36]} 0-1

[Event "FIDE World Rapid-ch Open 2018"]
[White "Guseinov, Gadir"]
[Black "Alekseev, Evgeny"]
[Site "St. Petersburg"]
[Round "11.15"]
[Annotator "ChessBase"]
[Result "1/2-1/2"]
[Date "2018.12.28"]
[WhiteElo "2664"]
[BlackElo "2639"]
[PlyCount "25"]
[TimeControl "900+10"]

1. e4 {[%emt 0:1:17]} c5 {[%emt 0:0:0]} 2. Nc3 {[%emt 0:0:6]} e6 {[%emt 0:0:0]} 3. Nf3 {[%emt 0:0:3]} d6 {[%emt 0:1:27]} 4. d4 {[%emt 0:0:2]} cxd4 {[%emt 0:0:2]} 5. Nxd4 {[%emt 0:0:1]} a6 {[%emt 0:0:1]} 6. g3 {[%emt 0:0:0]} Nf6 {[%emt 0:0:15]} 7. Bg2 {[%emt 0:0:2]} Be7 {[%emt 0:0:1]} 8. 0-0 {[%emt 0:0:2]} 0-0 {[%emt 0:0:3]} 9. f4 {[%emt 0:0:6]} Nc6 {[%emt 0:0:0]} 10. Be3 {[%emt 0:0:6]} Qc7 {[%emt 0:0:30]} 11. Kh1 {[%emt 0:0:5]} Rb8 {[%emt 0:2:11]} 12. Nb3 {[%emt 0:0:40]} b5 {[%emt 0:0:25]} 13. a3 {[%emt 0:0:1]
} 1/2-1/2

[Event "FIDE World Rapid-ch Open 2018"]
[White "Jakovenko, Dmitry"]
[Black "Goganov, Aleksey"]
[Site "St. Petersburg"]
[Round "11.16"]
[Annotator "ChessBase"]
[Result "1/2-1/2"]
[Date "2018.12.28"]
[WhiteElo "2735"]
[BlackElo "2612"]
[PlyCount "80"]
[TimeControl "900+10"]

1. d4 {[%emt 0:0:0]} d5 {[%emt 0:0:0]} 2. c4 {[%emt 0:0:0]} c6 {[%emt 0:0:0]} 3. Nc3 {[%emt 0:0:0]} Nf6 {[%emt 0:0:0]} 4. e3 {[%emt 0:0:0]} e6 {[%emt 0:0:0]} 5. Nf3 {[%emt 0:0:0]} Nbd7 {[%emt 0:0:0]} 6. Qc2 {[%emt 0:0:0]} Bd6 {[%emt 0:0:5]} 7. Bd3 {[%emt 0:0:0]} dxc4 {[%emt 0:0:2]} 8. Bxc4 {[%emt 0:0:1]} 0-0 {[%emt 0:0:2]} 9. 0-0 {[%emt 0:0:2]} b5 {[%emt 0:0:0]} 10. Bd3 {[%emt 0:0:1]} Bb7 {[%emt 0:0:2]} 11. e4 {[%emt 0:0:2]} e5 {[%emt 0:0:37]} 12. dxe5 {[%emt 0:0:3]} Nxe5 {[%emt 0:0:4]} 13. Nxe5 {[%emt 0:0:2]
} Bxe5 {[%emt 0:0:2]} 14. h3 {[%emt 0:0:0]} Re8 {[%emt 0:0:0]} 15. Be3 {[%emt 0:0:4]} a6 {[%emt 0:3:29]} 16. Rfd1 {[%emt 0:0:2]} Qc7 {[%emt 0:3:16]} 17. a4 {[%emt 0:0:2]} Rac8 {[%emt 0:2:1]} 18. Ne2 {[%emt 0:0:42]
} c5 {[%emt 0:1:20]} 19. f4 {[%emt 0:3:41]} c4 {[%emt 0:1:24]} 20. fxe5 {[%emt 0:0:1]} Qxe5 {[%emt 0:0:17]} 21. Bd4 {[%emt 0:0:1]} cxd3 {[%emt 0:0:30]
} 22. Qxd3 {[%emt 0:0:1]} Qxe4 {[%emt 0:0:12]} 23. Qxe4 {[%emt 0:0:2]
} Nxe4 {[%emt 0:0:15]} 24. axb5 {[%emt 0:1:9]} axb5 {[%emt 0:0:0]} 25. Rac1 {[%emt 0:0:34]} f6 {[%emt 0:0:18]} 26. Rxc8 {[%emt 0:0:15]} Rxc8 {[%emt 0:0:2]} 27. Nc3 {[%emt 0:0:18]} b4 {[%emt 0:0:33]} 28. Nxe4 {[%emt 0:1:0]
} Bxe4 {[%emt 0:0:3]} 29. b3 {[%emt 0:1:8]} Bd5 {[%emt 0:0:0]} 30. Bf2 {[%emt 0:0:28]} Bxb3 {[%emt 0:0:8]} 31. Rb1 {[%emt 0:0:1]} Bd5 {[%emt 0:0:32]} 32. Rxb4 {[%emt 0:0:1]} Rc1+ {[%emt 0:0:1]} 33. Kh2 {[%emt 0:0:1]
} Rc2 {[%emt 0:0:2]} 34. Kg1 {[%emt 0:0:5]} Kf7 {[%emt 0:0:0]} 35. Rb5 {[%emt 0:0:11]} Ke6 {[%emt 0:0:26]} 36. Rc5 {[%emt 0:0:6]} Ra2 {[%emt 0:0:27]} 37. Rc7 {[%emt 0:0:11]} Ra1+ {[%emt 0:0:4]} 38. Kh2 {[%emt 0:0:1]
} Ra2 {[%emt 0:0:2]} 39. Kg1 {[%emt 0:0:1]} Ra1+ {[%emt 0:0:0]} 40. Kh2 {[%emt 0:0:1]} Ra2 {[%emt 0:0:2]} 1/2-1/2

[Event "FIDE World Rapid-ch Open 2018"]
[White "Bazeev, German"]
[Black "Zhigalko, Sergei"]
[Site "St. Petersburg"]
[Round "11.17"]
[Annotator "ChessBase"]
[Result "0-1"]
[Date "2018.12.28"]
[WhiteElo "2416"]
[BlackElo "2604"]
[PlyCount "59"]
[TimeControl "900+10"]

1. d4 {[%emt 0:0:0]} Nf6 {[%emt 0:0:0]} 2. Nf3 {[%emt 0:0:0]} e6 {[%emt 0:0:0]
} 3. c4 {[%emt 0:0:0]} b6 {[%emt 0:0:0]} 4. Nc3 {[%emt 0:0:0]} Bb4 {[%emt 0:0:0]} 5. Bg5 {[%emt 0:0:1]} h6 {[%emt 0:0:0]} 6. Bd2 {[%emt 0:0:2]
} Bb7 {[%emt 0:0:7]} 7. Rc1 {[%emt 0:0:2]} 0-0 {[%emt 0:0:0]} 8. g4 {[%emt 0:0:1]} Bxc3 {[%emt 0:2:25]} 9. bxc3 {[%emt 0:1:0]} Ne4 {[%emt 0:0:3]} 10. Rg1 {[%emt 0:0:17]} d6 {[%emt 0:0:33]} 11. g5 {[%emt 0:0:0]} h5 {[%emt 0:0:1]} 12. g6 {[%emt 0:0:7]} Qf6 {[%emt 0:0:6]} 13. Bg5 {[%emt 0:3:29]} Nxg5 {[%emt 0:0:20]} 14. Nxg5 {[%emt 0:0:2]} fxg6 {[%emt 0:0:55]
} 15. f3 {[%emt 0:0:2]} Nc6 {[%emt 0:1:37]} 16. e3 {[%emt 0:0:0]} Rae8 {[%emt 0:0:38]} 17. Rc2 {[%emt 0:0:44]} Nd8 {[%emt 0:1:27]} 18. Qd3 {[%emt 0:1:52]} e5 {[%emt 0:1:10]} 19. d5 {[%emt 0:0:38]} e4 {[%emt 0:0:0]} 20. fxe4 {[%emt 0:0:27]} Nf7 {[%emt 0:0:2]} 21. Nxf7 {[%emt 0:0:56]
} Rxf7 {[%emt 0:0:1]} 22. Rcg2 {[%emt 0:0:31]} Bc8 {[%emt 0:2:2]} 23. Be2 {[%emt 0:0:5]} Qh4+ {[%emt 0:0:13]} 24. Kd2 {[%emt 0:0:1]} Rxe4 {[%emt 0:0:0]} 25. Rxg6 {[%emt 0:0:9]} Bf5 {[%emt 0:1:42]} 26. R6g5 {[%emt 0:0:17]
} Rf4 {[%emt 0:1:6]} 27. e4 {[%emt 0:0:11]} Bg4 {[%emt 0:0:12]} 28. Bxg4 {[%emt 0:1:11]
} Qxg5 {[%emt 0:0:9]} 29. h4 {[%emt 0:0:3]} Qg6 {[%emt 0:0:0]} 30. Rh1 0-1

[Event "FIDE World Rapid-ch Open 2018"]
[White "Cheparinov, Ivan"]
[Black "Yakubboev, Nodirbek"]
[Site "St. Petersburg"]
[Round "11.18"]
[Annotator "ChessBase"]
[Result "1/2-1/2"]
[Date "2018.12.28"]
[WhiteElo "2709"]
[BlackElo "2556"]
[PlyCount "103"]
[TimeControl "900+10"]

1. Nf3 {[%emt 0:0:0]} d5 {[%emt 0:0:11]} 2. d4 {[%emt 0:0:0]} Nf6 {[%emt 0:2:1]
} 3. c4 {[%emt 0:0:0]} dxc4 {[%emt 0:0:2]} 4. e3 {[%emt 0:0:0]} e6 {[%emt 0:0:1]} 5. Bxc4 {[%emt 0:0:3]} c5 {[%emt 0:0:1]} 6. 0-0 {[%emt 0:0:7]
} a6 {[%emt 0:0:0]} 7. Nc3 {[%emt 0:0:4]} Nc6 {[%emt 0:0:15]
} 8. dxc5 {[%emt 0:0:11]} Bxc5 {[%emt 0:1:33]} 9. Qxd8+ {[%emt 0:0:2]} Kxd8 {[%emt 0:0:1]} 10. Ng5 {[%emt 0:2:2]} b5 {[%emt 0:3:12]} 11. Be2 {[%emt 0:0:0]} Ke7 {[%emt 0:0:17]} 12. Nge4 {[%emt 0:1:8]} Nxe4 {[%emt 0:1:6]} 13. Nxe4 {[%emt 0:0:1]} Bb6 {[%emt 0:0:1]} 14. a4 {[%emt 0:0:45]} b4 {[%emt 0:0:56]
} 15. Bd2 {[%emt 0:0:12]} a5 {[%emt 0:1:25]} 16. Rac1 {[%emt 0:0:0]} Ne5 {[%emt 0:1:53]} 17. Nc5 {[%emt 0:1:59]} Nd7 {[%emt 0:0:40]} 18. Nb3 {[%emt 0:0:50]} Bb7 {[%emt 0:0:11]} 19. Bb5 {[%emt 0:0:39]} Rhc8 {[%emt 0:0:30]
} 20. f3 {[%emt 0:2:18]} Bd5 {[%emt 0:1:20]} 21. Rxc8 {[%emt 0:0:0]} Rxc8 {[%emt 0:0:1]} 22. Rc1 {[%emt 0:0:0]} Rxc1+ {[%emt 0:0:20]} 23. Nxc1 {[%emt 0:0:2]} Nc5 {[%emt 0:0:1]} 24. Kf1 {[%emt 0:0:5]} f5 {[%emt 0:0:2]
} 25. Ke2 {[%emt 0:0:6]} Bc7 {[%emt 0:0:9]} 26. Be1 {[%emt 0:0:0]} Be5 {[%emt 0:1:46]} 27. Bh4+ {[%emt 0:0:1]} Kd6 {[%emt 0:1:12]} 28. Nd3 {[%emt 0:1:30]} Nxd3 {[%emt 0:0:13]} 29. Kxd3 {[%emt 0:0:1]} Bxb2 {[%emt 0:0:17]
} 30. Bd8 {[%emt 0:0:2]} Bf6 {[%emt 0:0:7]} 31. Bxa5 {[%emt 0:0:28]
} b3 {[%emt 0:0:3]} 32. Bb4+ {[%emt 0:0:12]} Kc7 {[%emt 0:0:0]} 33. Ba3 {[%emt 0:0:2]} Bc6 {[%emt 0:0:13]} 34. Bxc6 {[%emt 0:0:27]} Kxc6 {[%emt 0:0:2]} 35. Bb4 {[%emt 0:0:1]} g6 {[%emt 0:0:10]} 36. e4 {[%emt 0:0:58]
} fxe4+ {[%emt 0:0:2]} 37. fxe4 {[%emt 0:0:1]} h5 {[%emt 0:0:0]} 38. h3 {[%emt 0:0:5]} Kb6 {[%emt 0:0:7]} 39. Kd2 {[%emt 0:0:13]} Bb2 {[%emt 0:0:22]} 40. g4 {[%emt 0:0:13]} hxg4 {[%emt 0:0:4]} 41. hxg4 {[%emt 0:0:1]
} Ka6 {[%emt 0:0:6]} 42. Kd3 {[%emt 0:1:37]} Bf6 {[%emt 0:0:0]} 43. Kd2 {[%emt 0:0:20]} Kb6 {[%emt 0:0:14]} 44. Kd3 {[%emt 0:0:13]} Kc6 {[%emt 0:0:4]} 45. Kd2 {[%emt 0:0:7]} Bd4 {[%emt 0:0:29]} 46. Kd3 {[%emt 0:0:2]
} Be5 {[%emt 0:0:5]} 47. Kd2 {[%emt 0:0:3]} Kd7 {[%emt 0:0:0]} 48. Kd3 {[%emt 0:0:10]} Kc6 {[%emt 0:0:13]} 49. Kd2 {[%emt 0:0:3]} Kb7 {[%emt 0:0:5]} 50. Kd3 {[%emt 0:0:4]} Ka6 {[%emt 0:0:14]} 51. Kd2 {[%emt 0:0:3]
} Kb6 {[%emt 0:0:5]} 52. Kd3 {[%emt 0:0:3]} 1/2-1/2